bitfinex-derivatives/quotes_BTCF0:USTF0_20241103
["timestamp","ask_amount","ask_price","bid_price","bid_amount"]
[1730616315392,0.072819,68687.0,68675.0,0.06441052]
[1730616315393,0.072831,68676.0,68675.0,0.06441052]
[1730616315578,0.072831,68676.0,68675.0,0.20165304]
[1730616315886,0.072831,68676.0,68675.0,0.13724252]
[1730616316690,0.072831,68676.0,68675.0,0.20165304]
[1730616316983,0.072831,68676.0,68675.0,0.20665304]
[1730616317682,0.072831,68676.0,68675.0,0.15424252]
[1730616318580,0.072831,68676.0,68675.0,0.21865304]
[1730616321996,0.072831,68676.0,68675.0,0.15424252]
[1730616323493,0.072831,68676.0,68675.0,0.08141052]
[1730616324186,0.072831,68676.0,68675.0,0.017]
[1730616325394,0.072831,68676.0,68675.0,0.08141052]
[1730616329882,0.072831,68676.0,68675.0,0.21865304]
[1730616330886,0.39637005,68685.0,68679.0,0.072826]
[1730616330887,0.072827,68680.0,68679.0,0.072826]
[1730616331089,0.072827,68680.0,68679.0,0.13723652]
[1730616332197,0.072827,68680.0,68679.0,0.13823652]
[1730616333085,0.072827,68680.0,68679.0,0.14623652]
[1730616340108,0.4567,68691.0,68682.0,0.072823]
[1730616340109,0.072823,68684.0,68682.0,0.072823]
[1730616340398,0.072823,68684.0,68683.0,0.13723352]
[1730616341797,0.073823,68684.0,68683.0,0.13723352]
[1730616342499,0.072823,68684.0,68683.0,0.13723352]
[1730616342686,0.073823,68684.0,68683.0,0.13723352]
[1730616343402,0.073823,68684.0,68683.0,0.14123352]
[1730616353003,0.001,68684.0,68683.0,0.14123352]
[1730616355413,0.001,68684.0,68683.0,0.20564404]
[1730616355911,0.001,68684.0,68683.0,0.23674404]
[1730616356115,0.0632,68691.0,68683.0,0.23674404]
[1730616356116,0.0632,68691.0,68690.0,0.072816]
[1730616356312,0.0632,68691.0,68690.0,0.65303704]
[1730616357415,0.07281,68696.0,68694.0,0.072811]
[1730616357612,0.07281,68696.0,68695.0,0.06441052]
[1730616358314,0.07281,68696.0,68695.0,0.13722152]
[1730616358721,0.07381,68696.0,68695.0,0.13722152]
[1730616360022,0.072805,68701.0,68695.0,0.06441052]
[1730616360221,0.072805,68701.0,68699.0,0.13721652]
[1730616360611,0.0319,68702.0,68699.0,0.20162704]
[1730616360823,0.0319,68702.0,68699.0,0.29222704]
[1730616361127,0.0323,68705.0,68699.0,0.29222704]
[1730616363027,0.072802,68704.0,68699.0,0.29222704]
[1730616363331,0.072802,68704.0,68699.0,0.22781652]
[1730616363516,0.072802,68704.0,68699.0,0.29222704]
[1730616364819,0.072802,68704.0,68699.0,0.32775236]
[1730616365022,0.072803,68703.0,68699.0,0.26334184]
[1730616365217,0.072803,68703.0,68699.0,0.32775236]
[1730616365729,0.072803,68703.0,68699.0,0.62414184]
[1730616365928,0.072803,68703.0,68699.0,0.26334184]
[1730616366128,0.072803,68703.0,68699.0,0.62414184]
[1730616375337,0.072804,68702.0,68699.0,0.62414184]
[1730616380831,0.0303,68704.0,68699.0,0.90583584]
[1730616381040,0.072796,68709.0,68699.0,0.90583584]
[1730616381838,0.072792,68713.0,68712.0,0.072791]
[1730616382023,0.072792,68713.0,68712.0,0.13720152]
[1730616383538,0.001,68713.0,68712.0,0.12882104]
[1730616383836,0.03651034,68719.0,68718.0,0.072786]
[1730616384030,0.072785,68719.0,68718.0,0.06441052]
[1730616384529,0.072785,68719.0,68718.0,0.13719652]
[1730616386238,0.0325,68724.0,68720.0,0.072783]
[1730616386438,0.10528,68724.0,68723.0,0.06441052]
[1730616386746,0.1845934,68724.0,68723.0,0.06441052]
[1730616390641,0.1845934,68724.0,68723.0,0.13719152]
[1730616391038,0.14889746,68724.0,68723.0,0.13719152]
[1730616394750,0.00218286,68735.0,68730.0,0.072773]
[1730616395046,0.07495086,68735.0,68734.0,0.06441052]
[1730616395256,0.11879141,68735.0,68734.0,0.06441052]
[1730616395942,0.15395951,68735.0,68734.0,0.06441052]
[1730616396242,0.11011896,68735.0,68734.0,0.06441052]
[1730616398144,0.07495086,68735.0,68734.0,0.06441052]
[1730616400846,0.43866286,68735.0,68727.0,0.06441052]
[1730616401047,0.072776,68728.0,68727.0,0.06441052]
[1730616401944,0.072781,68723.0,68722.0,0.58855252]
[1730616402348,0.072781,68723.0,68722.0,0.49799252]
[1730616402550,0.072781,68723.0,68722.0,0.433582]
[1730616405748,0.1164304,68723.0,68722.0,0.3608]
[1730616407456,0.16717733,68723.0,68722.0,0.3608]
[1730616407752,0.1164304,68723.0,68722.0,0.3608]
[1730616408359,0.11651251,68723.0,68722.0,0.3608]
[1730616409462,0.16732734,68723.0,68722.0,0.433582]
[1730616409665,0.16732734,68723.0,68722.0,0.072782]
[1730616409960,0.072781,68723.0,68722.0,0.072782]
[1730616416655,0.0645,68727.0,68725.0,0.072778]
[1730616416858,0.166939,68726.0,68725.0,0.072778]
[1730616417358,0.094161,68726.0,68725.0,0.072778]
[1730616417566,0.094161,68726.0,68725.0,0.072779]
[1730616417567,0.04358335,68726.0,68725.0,0.072779]
[1730616417859,0.072771,68733.0,68725.0,0.072779]
[1730616418166,0.09481407,68732.0,68731.0,0.072772]
[1730616418461,0.09481407,68732.0,68731.0,0.13718252]
[1730616418649,0.04387414,68732.0,68731.0,0.13718252]
[1730616418850,0.0947589,68732.0,68731.0,0.06441052]
[1730616419058,0.0947589,68732.0,68731.0,0.13718252]
[1730616419265,0.04387414,68732.0,68731.0,0.13718252]
[1730616420855,0.043963,68732.0,68731.0,0.06441052]
[1730616421048,0.043963,68732.0,68731.0,0.13718252]
[1730616422261,0.043963,68732.0,68731.0,0.20159304]
[1730616422459,0.00218286,68735.0,68734.0,0.072769]
[1730616422662,0.04615911,68735.0,68734.0,0.072769]
[1730616422964,0.0972176,68735.0,68734.0,0.072769]
[1730616423374,0.1699856,68735.0,68734.0,0.072769]
[1730616424968,0.07495086,68735.0,68734.0,0.072769]
[1730616425166,0.00218286,68735.0,68734.0,0.13717952]
[1730616426263,0.00218286,68735.0,68734.0,0.072769]
[1730616426568,0.00218286,68735.0,68734.0,0.13717952]
[1730616428764,0.0639,68749.0,68734.0,0.56530104]
[1730616429066,0.04408611,68748.0,68747.0,0.433555]
[1730616429372,0.26959055,68758.0,68757.0,0.072745]
[1730616429560,0.072739,68763.0,68762.0,0.072739]
[1730616429866,0.072739,68763.0,68762.0,0.07274]
[1730616430467,0.072739,68763.0,68762.0,0.13715052]
[1730616431171,0.03419532,68769.0,68762.0,0.06441052]
[1730616431377,0.03419532,68769.0,68759.0,0.3608]
[1730616431378,0.072742,68760.0,68759.0,0.3608]
[1730616431568,0.072742,68760.0,68759.0,0.42521052]
[1730616431764,0.072742,68760.0,68759.0,0.53138368]
[1730616432263,0.072739,68764.0,68763.0,0.072738]
[1730616432466,0.072739,68764.0,68763.0,0.17057868]
[1730616434063,0.072739,68764.0,68763.0,0.09784068]
[1730616435373,0.072742,68760.0,68759.0,0.36172]
[1730616435576,0.072742,68760.0,68759.0,0.433543]
[1730616437075,0.072739,68763.0,68762.0,0.072738]
[1730616437268,0.072739,68763.0,68762.0,0.17057868]
[1730616439172,0.072739,68763.0,68762.0,0.09784068]
[1730616439370,0.072742,68760.0,68759.0,0.434343]
[1730616439572,0.072742,68760.0,68759.0,0.433543]
[1730616440567,0.072742,68760.0,68759.0,0.3608]
[1730616441073,0.072742,68760.0,68759.0,0.433543]
[1730616442986,0.072737,68764.0,68763.0,0.072736]
[1730616443175,0.072737,68764.0,68763.0,0.17057668]
[1730616445772,0.3608,68768.0,68767.0,0.072734]
[1730616446779,0.0617,68777.0,68767.0,0.09176]
[1730616446780,0.072729,68773.0,68767.0,0.09176]
[1730616446986,0.072726,68776.0,68775.0,0.072725]
[1730616447571,0.0303,68788.0,68772.0,0.45944068]
[1730616447799,0.072726,68776.0,68775.0,0.072724]
[1730616448184,0.0309,68784.0,68772.0,0.3608]
[1730616448371,0.07490333,68780.0,68779.0,0.072722]
[1730616449672,0.07490333,68780.0,68779.0,0.17056268]
[1730616451575,0.07490333,68780.0,68779.0,0.18960068]
[1730616451984,0.07490333,68780.0,68779.0,0.09784068]
[1730616452886,0.00218233,68780.0,68779.0,0.62312268]
[1730616453085,0.072715,68786.0,68785.0,0.072715]
[1730616453285,0.072715,68786.0,68785.0,0.17055568]
[1730616453591,0.072715,68786.0,68785.0,0.13689323]
[1730616453791,0.072711,68790.0,68789.0,0.07271]
[1730616453981,0.072711,68790.0,68789.0,0.20106646]
[1730616454187,0.072711,68790.0,68789.0,0.12835646]
[1730616454379,0.072711,68790.0,68789.0,0.13688923]
[1730616455097,0.072711,68790.0,68789.0,0.06417823]
[1730616455590,0.072711,68790.0,68785.0,0.433515]
[1730616455591,0.0303,68795.0,68788.0,0.09176]
[1730616455796,0.072711,68789.0,68788.0,0.09176]
[1730616456187,0.072711,68789.0,68788.0,0.26226801]
[1730616456486,0.072711,68789.0,68788.0,0.17050801]
[1730616456681,0.057711,68789.0,68788.0,0.26226801]
[1730616458293,0.057711,68789.0,68788.0,0.17050801]
[1730616458482,0.057711,68789.0,68788.0,0.18955601]
[1730616459095,0.057711,68789.0,68788.0,0.09779601]
[1730616459398,0.057711,68789.0,68788.0,0.18955601]
[1730616460695,0.057711,68789.0,68788.0,0.09779601]
[1730616460887,0.057711,68789.0,68788.0,0.18955601]
[1730616462292,0.057711,68789.0,68788.0,0.26226801]
[1730616462696,0.057711,68789.0,68788.0,0.17050801]
[1730616462996,0.057711,68789.0,68788.0,0.26226801]
[1730616463690,0.0333,68796.0,68788.0,0.55035601]
[1730616463994,0.0333,68796.0,68793.0,0.09779601]
[1730616463995,0.103606,68794.0,68793.0,0.09779601]
[1730616464203,0.15020997,68794.0,68793.0,0.09779601]
[1730616464396,0.15020997,68794.0,68793.0,0.17050301]
[1730616464787,0.04662252,68794.0,68793.0,0.072707]
[1730616464999,0.072703,68797.0,68796.0,0.072703]
[1730616465297,0.1,68800.0,68799.0,0.0727]
[1730616465594,0.1,68800.0,68796.0,0.09779601]
[1730616465595,0.14684953,68800.0,68796.0,0.09779601]
[1730616465793,0.04684953,68799.0,68798.0,0.072702]
[1730616466195,0.11954953,68799.0,68798.0,0.072702]
[1730616466388,0.11917176,68799.0,68798.0,0.072702]
[1730616466588,0.0727,68799.0,68798.0,0.072702]
[1730616469699,0.1190931,68799.0,68798.0,0.072702]
[1730616469897,0.0727,68799.0,68798.0,0.072702]
[1730616471998,0.1,68800.0,68798.0,0.072702]
[1730616471999,0.1,68800.0,68799.0,0.0727]
[1730616474994,0.1,68800.0,68799.0,0.16578]
[1730616475396,0.14650933,68800.0,68799.0,0.16578]
[1730616475698,0.21925947,68800.0,68799.0,0.15724395]
[1730616475901,0.21925947,68800.0,68799.0,0.06416395]
[1730616475902,0.21928516,68800.0,68799.0,0.06416395]
[1730616476793,0.172699,68800.0,68799.0,0.06416395]
[1730616477593,0.1,68800.0,68796.0,0.09778882]
[1730616477795,0.072703,68797.0,68796.0,0.09778882]
[1730616479302,0.072703,68797.0,68796.0,0.17049282]
[1730616479502,0.072703,68797.0,68796.0,0.09778882]
[1730616479696,0.072703,68797.0,68796.0,0.17049282]
[1730616480192,0.1,68800.0,68799.0,0.0727]
[1730616482501,0.172699,68800.0,68799.0,0.16578]
[1730616482703,0.172699,68800.0,68799.0,0.0727]
[1730616483007,0.172699,68800.0,68799.0,0.16578]
[1730616483898,0.172699,68800.0,68799.0,0.0727]
[1730616485205,0.172699,68800.0,68799.0,0.16578]
[1730616485801,0.172699,68800.0,68799.0,0.0727]
[1730616488000,0.172699,68800.0,68799.0,0.16578]
[1730616488813,0.172699,68800.0,68799.0,0.52658]
[1730616489207,0.172699,68800.0,68799.0,0.3608]
[1730616491511,0.072705,68795.0,68794.0,0.09778882]
[1730616492201,0.07271,68790.0,68789.0,0.09778882]
[1730616492816,0.07271,68790.0,68786.0,0.3608]
[1730616492817,0.072713,68787.0,68786.0,0.3608]
[1730616493205,0.072716,68784.0,68783.0,0.09778882]
[1730616493599,0.3608,68789.0,68778.0,0.45938882]
[1730616493804,0.072722,68779.0,68778.0,0.45858882]
[1730616495817,0.072722,68779.0,68778.0,0.53131182]
[1730616496123,0.072722,68779.0,68778.0,0.54031182]
[1730616496308,0.072722,68779.0,68778.0,0.46758882]
[1730616500920,0.072722,68779.0,68778.0,0.10678882]
[1730616501118,0.072722,68779.0,68778.0,0.46758882]
[1730616502410,0.072722,68779.0,68778.0,0.54031182]
[1730616504116,0.3608,68789.0,68778.0,0.54031182]
[1730616504117,0.3608,68789.0,68778.0,0.46758882]
[1730616504321,0.07272,68783.0,68782.0,0.072718]
[1730616504523,0.072713,68788.0,68787.0,0.072713]
[1730616504712,0.072715,68786.0,68785.0,0.072715]
[1730616506516,0.072715,68786.0,68785.0,0.074715]
[1730616508423,0.1,68800.0,68792.0,0.072708]
[1730616508424,0.00218109,68793.0,68792.0,0.072708]
[1730616508629,0.00218109,68793.0,68792.0,0.53129682]
[1730616513227,0.1,68800.0,68799.0,0.0727]
[1730616513430,0.1,68800.0,68799.0,0.17048882]
[1730616514925,0.1,68800.0,68799.0,0.23578882]
[1730616516320,0.1,68800.0,68799.0,0.138]
[1730616516525,0.1,68800.0,68799.0,0.35558375]
[1730616524335,0.1,68800.0,68799.0,0.44982375]
[1730616525441,0.1,68800.0,68799.0,1.17142375]
[1730616526949,0.1,68800.0,68799.0,1.07718375]
[1730616527143,0.1,68800.0,68799.0,1.17142375]
[1730616529947,0.1,68800.0,68799.0,1.07718375]
[1730616530145,0.1,68800.0,68799.0,1.17142375]
[1730616530952,0.1,68800.0,68799.0,1.07718375]
[1730616531152,0.1,68800.0,68799.0,1.17142375]
[1730616531449,0.1,68800.0,68799.0,1.60746375]
[1730616531648,0.1,68800.0,68799.0,1.73577399]
[1730616532942,0.1,68800.0,68799.0,1.64153399]
[1730616533154,0.1,68800.0,68799.0,0.85845512]
[1730616533350,0.1,68800.0,68799.0,0.92261024]
[1730616533659,0.172699,68800.0,68799.0,1.01617024]
[1730616533848,0.172699,68800.0,68799.0,0.95201512]
[1730616535053,0.172699,68800.0,68799.0,0.85845512]
[1730616535255,0.205199,68800.0,68799.0,0.78575512]
[1730616535448,0.205199,68800.0,68799.0,0.7216]
[1730616535449,0.641239,68800.0,68799.0,0.7216]
[1730616536154,0.641239,68800.0,68799.0,0.67067758]
[1730616536651,0.67574451,68800.0,68799.0,0.67067758]
[1730616540148,0.23970451,68800.0,68799.0,0.67067758]
[1730616540356,0.205199,68800.0,68799.0,0.67067758]
[1730616543051,0.205199,68800.0,68798.0,0.3608]
[1730616543253,0.0727,68799.0,68798.0,0.3608]
[1730616546966,0.07271,68790.0,68789.0,0.3608]
[1730616548757,0.072715,68785.0,68784.0,0.3608]
[1730616550569,0.072715,68785.0,68784.0,0.3638]
[1730616550753,0.508875,68785.0,68784.0,0.3638]
[1730616551064,0.072715,68785.0,68784.0,0.3638]
[1730616552565,0.072715,68785.0,68784.0,0.3139]
[1730616552774,0.072715,68785.0,68772.0,0.3608]
[1730616552775,0.072726,68775.0,68774.0,0.0430836]
[1730616553066,0.072728,68773.0,68772.0,0.3608]
[1730616553657,0.07273,68771.0,68770.0,0.00218091]
[1730616554368,0.50897,68771.0,68770.0,0.00218091]
[1730616554969,0.50897,68771.0,68762.0,0.3608]
[1730616555171,0.072748,68754.0,68753.0,0.072748]
[1730616555961,0.07274,68762.0,68752.0,0.3608]
[1730616556168,0.072752,68750.0,68749.0,0.09778698]
[1730616557166,0.072752,68750.0,68749.0,0.17053998]
[1730616557367,0.072752,68750.0,68749.0,0.18153998]
[1730616558364,0.3608,68763.0,68749.0,0.10878698]
[1730616558668,0.072743,68759.0,68758.0,0.072742]
[1730616558870,0.072737,68765.0,68764.0,0.072737]
[1730616559078,0.072737,68765.0,68764.0,0.17052398]
[1730616559367,0.072728,68773.0,68772.0,0.072728]
[1730616559669,0.072728,68773.0,68772.0,0.433528]
[1730616560874,0.0308,68780.0,68772.0,0.3618]
[1730616561176,0.07490777,68776.0,68775.0,0.072726]
[1730616562179,0.00218177,68776.0,68775.0,0.072726]
[1730616562371,0.00318177,68776.0,68775.0,0.072726]
[1730616563266,0.3911,68788.0,68775.0,0.072726]
[1730616563464,0.072718,68783.0,68782.0,0.072718]
[1730616563662,0.072721,68780.0,68779.0,0.3608]
[1730616565480,0.072714,68787.0,68786.0,0.072714]
[1730616566473,0.072718,68784.0,68783.0,0.072717]
[1730616567071,0.072719,68781.0,68780.0,0.13712]
[1730616569382,0.072719,68781.0,68780.0,0.0323]
[1730616569877,0.072719,68781.0,68780.0,0.0383]
[1730616570880,0.072719,68781.0,68780.0,0.006]
[1730616572077,0.072721,68780.0,68779.0,0.3608]
[1730616573776,0.073721,68780.0,68779.0,0.3608]
[1730616577386,0.072728,68773.0,68772.0,0.3608]
[1730616579095,0.072728,68773.0,68772.0,0.3668]
[1730616581389,0.072728,68773.0,68772.0,0.006]
[1730616584193,0.072728,68773.0,68772.0,0.078729]
[1730616587500,0.072728,68773.0,68772.0,0.1218126]
[1730616588505,0.072728,68773.0,68772.0,0.078729]
[1730616589615,0.072728,68773.0,68772.0,0.1361738]
[1730616590208,0.072728,68773.0,68772.0,0.078729]
[1730616595210,0.072728,68773.0,68772.0,0.02043691]
[1730616597103,0.072728,68773.0,68772.0,0.07817187]
[1730616600819,0.072728,68773.0,68772.0,0.02043691]
[1730616604412,0.13692315,68773.0,68772.0,0.02043691]
[1730616607117,0.49772315,68773.0,68772.0,0.02043691]
[1730616607322,0.93396315,68773.0,68772.0,0.02043691]
[1730616607620,1.02812315,68773.0,68772.0,0.02043691]
[1730616611408,0.07274,68762.0,68761.0,0.00218113]
[1730616611611,0.49773515,68762.0,68761.0,0.00218113]
[1730616612207,0.49773515,68762.0,68759.0,0.04331728]
[1730616612208,0.072742,68760.0,68759.0,0.04331728]
[1730616612412,0.072747,68755.0,68754.0,0.04331728]
[1730616612614,0.072748,68754.0,68753.0,0.04331728]
[1730616613012,0.42579515,68756.0,68752.0,0.04331728]
[1730616613013,0.072749,68753.0,68752.0,0.04331728]
[1730616613412,0.072752,68750.0,68749.0,0.04331728]
[1730616613616,0.072754,68748.0,68747.0,0.04331728]
[1730616614820,0.072755,68747.0,68746.0,0.04331728]
[1730616615622,0.10858913,68753.0,68745.0,0.04331728]
[1730616615623,0.072757,68746.0,68745.0,0.04331728]
[1730616616211,0.072757,68746.0,68745.0,0.04322694]
[1730616616730,0.072758,68745.0,68744.0,0.04322694]
[1730616617215,0.072759,68744.0,68741.0,0.04322694]
[1730616617416,0.07276,68743.0,68742.0,0.072761]
[1730616620524,0.07376,68743.0,68742.0,0.086761]
[1730616625124,0.001,68743.0,68742.0,0.18461656]
[1730616625323,0.072747,68755.0,68754.0,0.072746]
[1730616626136,0.3608,68758.0,68757.0,0.072745]
[1730616626331,0.072743,68759.0,68758.0,0.072744]
[1730616628431,0.072743,68759.0,68758.0,0.105144]
[1730616629132,0.072743,68759.0,68758.0,0.108144]
[1730616629725,0.072743,68759.0,68758.0,0.105144]
[1730616630023,0.072743,68759.0,68758.0,0.109144]
[1730616630218,0.072743,68759.0,68758.0,0.004]
[1730616630418,0.509063,68759.0,68758.0,0.004]
[1730616631131,0.54313521,68759.0,68758.0,0.004]
[1730616631427,0.90393521,68759.0,68758.0,0.004]
[1730616631724,0.072751,68751.0,68748.0,0.04321486]
[1730616631930,0.17060656,68751.0,68748.0,0.04321486]
[1730616632727,0.072751,68751.0,68748.0,0.04321486]
[1730616633238,0.072753,68749.0,68748.0,0.04321486]
[1730616633629,0.072755,68747.0,68746.0,0.3608]
[1730616634530,0.072755,68747.0,68746.0,0.41840503]
[1730616635447,0.072755,68747.0,68746.0,0.3608]
[1730616635819,0.072757,68746.0,68745.0,0.04327468]
[1730616636016,0.072757,68746.0,68745.0,0.40407468]
[1730616636219,0.072757,68746.0,68745.0,0.04327468]
[1730616636432,0.072757,68746.0,68745.0,0.40407468]
[1730616636621,0.072757,68746.0,68745.0,0.3608]
[1730616637129,0.072757,68746.0,68745.0,0.04329798]
[1730616637428,0.073757,68746.0,68745.0,0.41709798]
[1730616637623,0.073757,68746.0,68745.0,0.3738]
[1730616639731,0.073757,68746.0,68745.0,0.43140503]
[1730616641035,0.073757,68746.0,68745.0,0.07060503]
[1730616641234,0.073757,68746.0,68745.0,0.43140503]
[1730616641531,0.073757,68746.0,68745.0,0.3738]
[1730616641735,0.073757,68746.0,68745.0,0.07076857]
[1730616642129,0.073757,68746.0,68745.0,0.43156857]
[1730616642327,0.073757,68746.0,68745.0,0.53297441]
[1730616645028,0.073757,68746.0,68745.0,0.17217441]
[1730616645340,0.073757,68746.0,68745.0,0.53297441]
[1730616645533,0.073757,68746.0,68745.0,0.62034393]
[1730616645732,0.073757,68746.0,68745.0,0.53297367]
[1730616645934,0.073757,68746.0,68745.0,0.17217367]
[1730616646639,0.073757,68746.0,68745.0,0.53297367]
[1730616647138,0.073757,68746.0,68745.0,0.17217367]
[1730616647345,0.073757,68746.0,68745.0,0.53297367]
[1730616647936,0.073757,68746.0,68745.0,0.17217367]
[1730616648138,0.073757,68746.0,68745.0,0.53297367]
[1730616649043,0.073757,68746.0,68745.0,0.17217367]
[1730616649236,0.073757,68746.0,68745.0,0.53297367]
[1730616650543,0.073757,68746.0,68745.0,0.3738]
[1730616651538,0.073757,68746.0,68745.0,0.43157396]
[1730616651941,0.072758,68745.0,68742.0,0.04334008]
[1730616652145,0.072763,68740.0,68739.0,0.04334008]
[1730616652335,0.072763,68740.0,68736.0,0.05777278]
[1730616652336,0.433563,68740.0,68736.0,0.04334873]
[1730616652542,0.06421745,68737.0,68734.0,0.04334873]
[1730616652736,0.072769,68734.0,68733.0,0.04334873]
[1730616653242,0.072769,68734.0,68732.0,0.04334873]
[1730616653243,0.07277,68733.0,68732.0,0.04334873]
[1730616653437,0.07277,68733.0,68731.0,0.3608]
[1730616653438,0.072771,68732.0,68731.0,0.40414873]
[1730616653746,0.105171,68732.0,68731.0,0.3608]
[1730616654742,0.3932,68732.0,68724.0,0.07524873]
[1730616654949,0.07278,68724.0,68723.0,0.3608]
[1730616656140,0.001,68732.0,68731.0,0.072772]
[1730616656344,0.433563,68740.0,68731.0,0.072772]
[1730616656345,0.36156,68740.0,68739.0,0.072764]
[1730616656547,0.36298289,68754.0,68739.0,0.09788817]
[1730616656548,0.072752,68750.0,68739.0,0.09788817]
[1730616656847,0.36298289,68754.0,68740.0,0.07394873]
[1730616657040,0.36298289,68754.0,68744.0,0.072758]
[1730616657349,0.072753,68750.0,68744.0,0.072758]
[1730616657751,0.072753,68750.0,68745.0,0.072757]
[1730616658963,0.072754,68749.0,68745.0,0.072757]
[1730616659948,0.072758,68746.0,68743.0,0.0328]
[1730616660155,0.072755,68747.0,68745.0,0.001]
[1730616660354,0.3608,68748.0,68745.0,0.001]
[1730616660559,0.072757,68746.0,68745.0,0.001]
[1730616660945,0.574057,68746.0,68745.0,0.001]
[1730616661850,0.072771,68733.0,68731.0,0.072772]
[1730616662054,0.09788817,68734.0,68728.0,0.04334873]
[1730616662353,0.072775,68729.0,68726.0,0.04334873]
[1730616662552,0.072775,68729.0,68725.0,0.04334873]
[1730616662857,0.072775,68729.0,68726.0,0.072777]
[1730616663750,0.3608,68735.0,68726.0,0.076777]
[1730616663751,0.072777,68727.0,68726.0,0.076777]
[1730616663959,0.072772,68731.0,68729.0,0.072774]
[1730616664154,0.072773,68730.0,68729.0,0.072774]
[1730616664343,0.072774,68730.0,68726.0,0.076777]
[1730616664748,0.072775,68729.0,68726.0,0.076777]
[1730616664947,0.001,68727.0,68726.0,0.077777]
[1730616665464,0.001,68727.0,68726.0,0.005]
[1730616665653,0.073777,68727.0,68726.0,0.005]
[1730616666352,0.001,68727.0,68723.0,0.464901]
[1730616666559,0.3608,68735.0,68726.0,0.003]
[1730616667562,0.072777,68727.0,68726.0,0.003]
[1730616667859,0.3608,68735.0,68726.0,0.003]
[1730616668057,0.072773,68731.0,68730.0,0.072773]
[1730616668252,0.3608,68735.0,68731.0,0.072772]
[1730616668449,0.07277,68733.0,68731.0,0.072772]
[1730616668660,0.072777,68727.0,68726.0,0.001]
[1730616669047,0.3608,68735.0,68723.0,0.464861]
[1730616669048,0.072778,68726.0,68723.0,0.464861]
[1730616669251,0.072779,68725.0,68723.0,0.463981]
[1730616669562,0.072779,68725.0,68723.0,0.103181]
[1730616669757,0.072779,68725.0,68724.0,0.3608]
[1730616671957,0.3608,68735.0,68724.0,0.3608]
[1730616671958,0.072776,68728.0,68726.0,0.072778]
[1730616672458,0.072777,68727.0,68726.0,0.072778]
[1730616673156,0.3608,68735.0,68724.0,0.3638]
[1730616673157,0.072779,68725.0,68724.0,0.3638]
[1730616673346,0.072779,68725.0,68724.0,0.3608]
[1730616675858,0.072779,68725.0,68724.0,0.3638]
[1730616677959,0.072779,68725.0,68724.0,0.003]
[1730616678155,0.072779,68725.0,68724.0,0.3638]
[1730616678358,0.072779,68725.0,68724.0,0.003]
[1730616680360,0.509299,68725.0,68724.0,0.003]
[1730616681067,0.809299,68725.0,68724.0,0.003]
[1730616682362,1.530899,68725.0,68724.0,0.003]
[1730616682869,1.230899,68725.0,68724.0,0.003]
[1730616683174,1.230899,68725.0,68706.0,0.09037278]
[1730616683175,0.072788,68716.0,68706.0,0.04334873]
[1730616683469,0.0728,68705.0,68703.0,0.04334873]
[1730616683658,0.072802,68703.0,68702.0,0.04334873]
[1730616683854,0.3608,68703.0,68696.0,0.04334873]
[1730616684071,0.09788817,68701.0,68696.0,0.04332413]
[1730616684563,0.072811,68695.0,68694.0,0.04332413]
[1730616685064,0.09788817,68701.0,68693.0,0.40412413]
[1730616685065,0.072812,68694.0,68693.0,0.40412413]
[1730616685364,0.072812,68694.0,68693.0,0.3608]
[1730616687460,0.17070017,68694.0,68693.0,0.3608]
[1730616687660,0.17170017,68694.0,68693.0,0.3608]
[1730616689567,0.072818,68688.0,68687.0,0.00218378]
[1730616690468,0.072818,68688.0,68675.0,0.05777278]
[1730616690469,0.072825,68681.0,68675.0,0.04332413]
[1730616690668,0.3608,68679.0,68665.0,0.072842]
[1730616690866,0.072837,68670.0,68665.0,0.072842]
[1730616691063,0.072839,68669.0,68665.0,0.072842]
[1730616691466,0.072838,68669.0,68665.0,0.072842]
[1730616691671,0.072838,68669.0,68666.0,0.04325031]
[1730616691966,0.072838,68669.0,68667.0,0.07284]
[1730616692171,0.09592,68678.0,68668.0,0.072839]
[1730616692563,0.072837,68670.0,68668.0,0.072839]
[1730616692765,0.072841,68667.0,68664.0,0.3608]
[1730616692962,0.072842,68665.0,68664.0,0.3608]
[1730616694469,0.073842,68665.0,68664.0,0.3628]
[1730616702576,0.001,68665.0,68664.0,0.435643]
[1730616704983,0.09788817,68718.0,68677.0,0.072829]
[1730616704984,0.072829,68678.0,68677.0,0.072829]
[1730616705183,0.466216,68690.0,68681.0,0.072825]
[1730616705487,0.03577535,68692.0,68682.0,0.0311]
[1730616705678,0.072823,68683.0,68682.0,0.0311]
[1730616705877,0.072823,68683.0,68682.0,0.103924]
[1730616706280,0.072817,68689.0,68686.0,0.07282]
[1730616706482,0.36298498,68695.0,68682.0,0.3919]
[1730616706483,0.36298498,68695.0,68683.0,0.0331]
[1730616706673,0.36298498,68695.0,68686.0,0.072819]
[1730616706879,0.072819,68687.0,68686.0,0.072819]
[1730616707076,0.072822,68684.0,68683.0,0.0331]
[1730616707780,0.072823,68683.0,68682.0,0.3939]
[1730616708483,0.072823,68683.0,68682.0,0.3919]
[1730616709280,0.072823,68683.0,68675.0,0.0314]
[1730616709281,0.072834,68673.0,68669.0,0.3608]
[1730616709483,0.072837,68670.0,68669.0,0.3608]
[1730616712280,0.073837,68670.0,68669.0,0.3638]
[1730616713790,0.073837,68670.0,68669.0,0.003]
[1730616717693,0.073837,68670.0,68669.0,0.06066708]
[1730616718389,0.073837,68670.0,68669.0,0.003]
[1730616720894,0.073837,68670.0,68669.0,0.06092134]
[1730616721290,0.17172517,68670.0,68669.0,0.06092134]
[1730616721493,0.17172517,68670.0,68669.0,0.003]
[1730616722196,0.53252517,68670.0,68669.0,0.04644935]
[1730616722397,0.53252517,68670.0,68669.0,0.04644695]
[1730616723607,0.434637,68670.0,68669.0,0.04644695]
[1730616723791,0.434637,68670.0,68669.0,0.003]
[1730616724187,0.434637,68670.0,68669.0,0.06092419]
[1730616724386,0.434637,68670.0,68669.0,0.09312419]